bitfinex/quotes_ETHUSD_20220305
["timestamp","ask_amount","ask_price","bid_price","bid_amount"]
[1646495993921,1.55072675,2644.5,2643.9,0.00102986]
[1646495994124,5.05072675,2644.5,2643.7,4.86825449]
[1646495994321,1.55072675,2644.4,2643.7,5.61413484]
[1646495994527,1.55072675,2644.4,2643.9,0.00310279]
[1646495994721,1.50072675,2644.4,2643.9,0.00310279]
[1646495995126,1.17316672,2644.6,2643.9,0.00310279]
[1646495995322,3.5,2644.9,2643.9,0.00310279]
[1646495995523,3.5,2644.9,2643.7,6.36675882]
[1646495995923,3.5,2644.9,2643.9,0.00310271]
[1646495996521,0.90442583,2644.7,2643.9,0.00310271]
[1646495996721,0.90442583,2644.7,2643.7,5.80313484]
[1646495996969,0.90442583,2644.7,2643.9,0.01579275]
[1646495997770,0.90442583,2644.7,2643.9,0.20163419]
[1646495997972,3.5,2644.9,2643.9,0.189]
[1646495998173,1.1369,2645.0,2643.9,1.1347404]
[1646495998372,1.1369,2645.0,2643.9,1.13789889]
[1646495999172,2.21920923,2645.0,2644.2,0.90161385]
[1646495999373,1.08230923,2645.0,2644.2,0.90161385]
[1646495999576,0.03189351,2644.9,2644.2,0.90161385]
[1646496000714,0.03189351,2644.9,2644.0,2.2122]
[1646496000927,0.03189351,2644.9,2644.0,1.2122]
[1646496001118,0.03189351,2644.9,2644.0,1.41000595]
[1646496002722,0.03189351,2644.9,2644.4,0.05701185]
[1646496002920,0.03189351,2644.9,2644.0,1.41000595]
[1646496002921,0.87629341,2644.8,2644.0,1.41000595]
[1646496003319,0.87629341,2644.8,2644.0,1.36000595]
[1646496004362,0.87629341,2644.8,2644.4,0.05701185]
[1646496004563,0.87629341,2644.8,2644.0,1.36000595]
[1646496005564,0.87629341,2644.8,2644.0,1.34918998]
[1646496005764,0.87629341,2644.8,2644.4,0.05701185]
[1646496006065,0.87629341,2644.8,2644.0,1.34918998]
[1646496006467,0.87629341,2644.8,2644.0,1.36062798]
[1646496007265,0.87629341,2644.8,2644.4,0.05701185]
[1646496007470,0.87629341,2644.8,2644.0,1.34918998]
[1646496008318,0.03189351,2644.9,2644.0,1.34918998]
[1646496008518,0.03189351,2644.9,2644.0,2.27565132]
[1646496008817,0.03189351,2644.9,2644.4,0.05701185]
[1646496009219,0.03189351,2644.9,2644.6,0.30317811]
[1646496009418,0.03189351,2644.9,2644.6,0.60635622]
[1646496009621,0.90852334,2644.8,2644.6,0.60635622]
[1646496009818,4.19314777,2645.1,2644.6,0.60635622]
[1646496010418,4.19314777,2645.1,2644.8,0.05701185]
[1646496010720,4.19314777,2645.1,2644.6,0.5414929]
[1646496010919,1.09234394,2645.0,2644.6,0.5414929]
[1646496011119,3.5,2644.9,2644.6,0.5414929]
[1646496011320,1.09234394,2645.0,2644.6,0.5414929]
[1646496011621,4.59234394,2645.0,2644.6,0.5414929]
[1646496011865,1.09234394,2645.0,2644.6,0.5414929]
[1646496013870,0.02601793,2645.2,2644.6,0.5414929]
[1646496014070,0.03203324,2645.1,2644.6,0.5414929]
[1646496014275,0.03203324,2645.1,2644.6,0.30317811]
[1646496014473,0.03203324,2645.1,2644.8,0.23831479]
[1646496014673,1.55043401,2645.0,2644.8,0.23831479]
[1646496015722,0.03203324,2645.1,2644.8,0.23831479]
[1646496016523,2.09049377,2645.6,2644.8,0.23831479]
[1646496016724,1.55034801,2645.5,2644.8,0.23831479]
[1646496018125,1.55034801,2645.4,2644.8,0.23831479]
[1646496018329,0.69314777,2645.9,2644.8,0.23831479]
[1646496018330,1.55034801,2645.3,2644.8,0.23831479]
[1646496018528,1.85891606,2645.9,2644.8,0.23831479]
[1646496018730,0.0032261,2645.4,2644.8,0.23831479]
[1646496019563,0.0032261,2645.4,2644.7,0.88094681]
[1646496019564,1.55021848,2645.8,2644.7,1.80740815]
[1646496019765,0.00322606,2645.4,2645.0,0.23831479]
[1646496020868,1.55021848,2645.6,2645.0,0.23831479]
[1646496021067,0.69314777,2646.0,2645.0,0.23831479]
[1646496021068,0.00322614,2645.4,2645.0,0.23831479]
[1646496021267,0.00322614,2645.4,2645.0,0.61651479]
[1646496021969,0.00138243,2645.6,2645.0,0.61651479]
[1646496022166,1.55003758,2645.7,2645.5,0.96114738]
[1646496022367,1.55003758,2645.6,2645.0,3.04351479]
[1646496022568,1.55003758,2645.5,2645.0,0.23831479]
[1646496022767,1.55003758,2645.4,2645.0,0.23831479]
[1646496022967,0.01229278,2645.9,2645.0,0.23831479]
[1646496023226,1.55019271,2645.8,2645.0,0.23831479]
[1646496023417,1.55019271,2645.7,2645.0,0.23831479]
[1646496023616,0.00307381,2645.4,2645.0,0.23831479]
[1646496024018,1.38936936,2645.4,2645.2,0.02671157]
[1646496024417,0.00307381,2645.4,2645.2,0.02671157]
[1646496025019,0.00307381,2645.4,2645.3,0.30317811]
[1646496025217,0.00307381,2645.4,2645.3,0.5414929]
[1646496025616,1.55004941,2645.7,2645.3,0.5414929]
[1646496025823,0.00308409,2645.5,2645.3,0.5414929]
[1646496026862,1.55005927,2645.6,2645.3,0.5414929]
[1646496027064,0.00308407,2645.5,2645.3,0.5414929]
[1646496027665,0.00308407,2645.5,2645.4,3.5]
[1646496028065,1.55002224,2645.8,2645.4,4.5]
[1646496028268,0.00308407,2645.5,2645.4,4.5]
[1646496028868,0.00308407,2645.5,2645.4,1.0]
[1646496029068,0.00308407,2645.5,2645.3,1.76642741]
[1646496029269,1.19168955,2646.3,2645.3,1.76642741]
[1646496029270,3.51998955,2646.3,2645.3,1.76642741]
[1646496029472,1.55006377,2646.2,2645.3,1.76642741]
[1646496029676,0.00309528,2645.6,2645.5,3.213585]
[1646496029871,0.01237928,2646.0,2645.6,2.5]
[1646496030270,0.01237928,2646.0,2645.5,4.40404641]
[1646496030471,0.01237928,2646.0,2645.8,0.5414929]
[1646496030717,0.01860712,2646.3,2646.0,0.3782]
[1646496030923,0.00138243,2646.8,2646.0,0.3782]
[1646496031125,0.69325169,2647.5,2646.0,0.3782]
[1646496031126,0.00138243,2647.1,2646.1,1.19046141]
[1646496031319,0.04035807,2646.6,2646.1,1.19046141]
[1646496031520,0.04035807,2646.6,2646.2,0.56866141]
[1646496032017,0.04035807,2646.6,2646.2,1.51334141]
[1646496032218,0.04035807,2646.6,2646.3,1.3229188]
[1646496032417,0.04035807,2646.6,2646.4,0.94472]
[1646496032918,0.03950601,2646.6,2646.4,0.94472]
[1646496033925,0.00138243,2647.3,2646.5,3.0]
[1646496034224,0.00138243,2647.3,2646.6,1.88924]
[1646496034473,0.0188638,2647.9,2646.6,1.1465]
[1646496034474,0.01318489,2647.0,2646.6,1.1465]
[1646496035072,0.01318489,2647.0,2646.9,1.15739255]
[1646496035472,0.00138243,2647.7,2646.9,1.15739255]
[1646496035673,0.87841679,2647.8,2647.3,0.5414929]
[1646496035877,0.87841679,2647.8,2646.9,1.15739255]
[1646496035878,0.61592944,2647.2,2646.9,1.15739255]
[1646496036673,0.6192259,2647.2,2646.9,1.15739255]
[1646496037276,0.6192259,2647.2,2646.9,2.10202255]
[1646496037774,0.61592944,2647.2,2646.9,1.15739255]
[1646496037975,0.6192259,2647.2,2646.9,1.15739255]
[1646496038623,0.6192259,2647.2,2647.1,0.04378709]
[1646496038830,0.61592944,2647.2,2647.1,0.04378709]
[1646496039025,0.61912701,2647.2,2647.1,0.04378709]
[1646496040127,0.61592944,2647.2,2647.1,0.04378709]
[1646496043772,0.61592944,2647.2,2646.9,1.88904]
[1646496044172,0.61592944,2647.2,2646.8,1.0]
[1646496045171,0.00312903,2647.1,2646.8,1.0]
[1646496046018,0.61592944,2647.2,2646.8,1.0]
[1646496046418,0.00296861,2647.1,2646.8,1.0]
[1646496046823,0.00296861,2647.1,2646.8,1.94464]
[1646496047019,0.00296861,2647.1,2646.8,1.13510141]
[1646496047220,0.00296861,2647.1,2646.8,1.69357436]
[1646496047420,0.61592944,2647.2,2646.8,1.69357436]
[1646496047620,0.00296861,2647.1,2646.8,1.69357436]
[1646496047823,0.00296861,2647.1,2646.8,1.50311295]
[1646496048425,0.61592944,2647.2,2646.8,1.50311295]
[1646496048828,0.00296861,2647.1,2646.8,1.50311295]
[1646496049670,0.61592944,2647.2,2646.8,1.50311295]
[1646496049867,0.00286929,2647.1,2646.8,1.50311295]
[1646496050271,0.00286929,2647.1,2646.8,1.69357436]
[1646496050469,0.00286929,2647.1,2647.0,1.0]
[1646496050869,0.61592944,2647.2,2647.0,0.19046141]
[1646496051070,0.61592944,2647.2,2647.1,2.13334331]
[1646496052770,0.61592944,2647.2,2647.1,3.07781331]
[1646496053230,0.61592944,2647.2,2647.1,15.61781331]
[1646496053428,0.0188638,2647.9,2647.4,1.88863]
[1646496053625,0.0115133,2647.7,2647.4,3.09423]
[1646496053827,0.0115133,2647.7,2647.5,0.94432]
[1646496054027,0.0115133,2647.7,2647.6,1.0]
[1646496054626,0.0188638,2647.9,2647.6,1.0]
[1646496054826,0.00287856,2647.8,2647.6,1.0]
[1646496055030,0.00287856,2647.8,2647.6,1.19046141]
[1646496055225,0.00287856,2647.8,2647.6,0.19046141]
[1646496055424,0.00287856,2647.8,2647.7,1.2056]
[1646496055626,0.0188638,2647.9,2647.7,2.2056]
[1646496056026,3.5,2649.0,2648.1,0.95760871]
[1646496056228,4.25578568,2649.2,2648.1,0.95760871]
[1646496056426,1.49880371,2649.1,2648.1,0.95760871]
[1646496056867,3.5,2649.0,2648.1,0.95760871]
[1646496057268,1.00404824,2648.9,2648.1,0.95760871]
[1646496057669,1.00404824,2648.9,2647.8,3.2593]
[1646496057868,1.00404824,2648.9,2647.8,2.2593]
[1646496058069,1.00404824,2648.9,2647.8,3.2593]
[1646496058273,1.00404824,2648.9,2647.8,2.2593]
[1646496059375,4.06828568,2649.2,2647.8,2.2593]
[1646496059376,0.95847648,2648.5,2647.8,2.2593]
[1646496059580,0.95847648,2648.5,2647.7,2.2056]
[1646496059775,3.5,2648.4,2647.7,1.2056]
[1646496059974,3.5,2648.4,2647.3,2.4229]
[1646496060174,0.00137536,2648.3,2647.3,2.4229]
[1646496060822,0.00467102,2648.3,2647.3,2.4229]
[1646496061020,0.00329566,2648.3,2647.3,2.4229]
[1646496061719,0.93149585,2647.7,2646.9,2.45212041]
[1646496061920,0.93287121,2647.7,2647.0,0.00329728]
[1646496062920,0.93287121,2647.7,2646.9,2.45212041]
[1646496063125,0.93287121,2647.7,2647.0,0.00329693]
[1646496064125,0.93287121,2647.7,2646.9,1.392]
[1646496064366,0.93287121,2647.7,2647.0,0.00329693]
[1646496065368,0.93287121,2647.7,2646.9,1.392]
[1646496065569,0.93287121,2647.7,2647.0,0.00308746]
[1646496068730,3.5,2647.6,2647.1,0.02590265]
[1646496069324,3.5,2647.6,2646.9,0.25]
[1646496069325,0.03051767,2647.0,2646.9,0.25]
[1646496069526,0.03051767,2647.0,2646.6,0.55516941]
[1646496070130,0.03051767,2647.0,2646.2,0.56774216]
[1646496070323,0.03189303,2647.0,2646.0,0.25]
[1646496070525,3.53189303,2647.0,2646.0,0.25]
[1646496070727,0.03189303,2647.0,2646.7,0.00309537]
[1646496070926,0.03051767,2647.0,2646.7,0.00309537]
[1646496071325,0.03051767,2647.0,2646.0,0.25]
[1646496071525,0.03189303,2647.0,2646.7,0.00309535]
[1646496071728,0.03051767,2647.0,2646.7,0.00309535]
[1646496072182,3.53051767,2647.0,2646.7,0.00309535]
[1646496072785,3.53051767,2647.0,2645.6,7.47]
[1646496072982,1.05966445,2646.3,2645.6,7.47]
[1646496073181,1.62977536,2646.9,2646.7,0.0030922]
[1646496073482,1.6284,2646.9,2646.7,0.0030922]
[1646496073881,1.6284,2646.9,2645.9,0.25]
[1646496074081,1.6284,2646.9,2646.7,0.00309222]
[1646496074082,3.50137536,2646.8,2646.7,0.00309222]
[1646496074282,0.92520161,2646.8,2646.7,0.00309222]
[1646496074683,4.42520161,2646.8,2646.7,0.00309222]
[1646496074883,0.92520161,2646.8,2646.7,0.00309222]
[1646496075086,4.42520161,2646.8,2646.6,0.00309224]
[1646496075285,0.00137536,2646.7,2646.6,0.00309224]
[1646496075483,0.92520161,2646.8,2646.6,0.00309224]
[1646496075734,1.6284,2646.9,2646.6,0.00309224]
[1646496076135,1.6284,2646.9,2645.9,0.86609425]
[1646496076334,0.00137536,2646.8,2645.8,0.25]
[1646496076534,0.00137536,2646.8,2646.6,0.00300248]
[1646496076734,1.6284,2646.9,2646.6,0.00300248]
[1646496077336,0.98537156,2646.7,2645.8,1.19678695]
[1646496077934,0.98537156,2646.7,2646.6,0.00300246]
[1646496078537,0.98537156,2646.7,2645.8,0.25]
[1646496078736,0.98537156,2646.7,2646.5,0.0030025]
[1646496079770,0.98537156,2646.7,2645.8,1.14353746]
[1646496079977,0.98537156,2646.7,2646.5,0.00300591]
[1646496080174,1.6284,2646.9,2646.5,0.00300591]
[1646496080977,1.6284,2646.9,2645.8,1.14353746]
[1646496081176,0.00137536,2646.8,2646.6,0.00300587]
[1646496081376,1.03930679,2646.8,2646.6,0.00300587]
[1646496081590,1.6284,2646.9,2646.6,0.00300587]
[1646496081776,1.6284,2646.9,2645.8,1.14002383]
[1646496081976,0.00137536,2646.8,2645.8,1.14002383]
[1646496082277,0.00137536,2646.8,2645.8,2.06648517]
[1646496082476,0.00137536,2646.8,2645.8,1.14002383]
[1646496083345,0.00137536,2646.8,2646.2,1.06613758]
[1646496083545,0.03434741,2647.0,2646.2,1.06613758]
[1646496083748,0.03297205,2647.0,2646.2,1.06914553]
[1646496084749,0.03297205,2647.0,2646.2,1.06613758]
[1646496084950,1.08062298,2647.0,2646.5,0.00300783]
[1646496085150,1.08062298,2647.0,2646.2,1.06084793]
[1646496085348,1.08199834,2647.0,2646.2,1.06084793]
[1646496085553,1.08199834,2647.0,2645.8,0.24648637]
[1646496086649,1.08199834,2647.0,2646.0,1.20020195]
[1646496089876,1.08199834,2647.0,2645.8,0.24648637]
[1646496090378,1.54957871,2646.9,2645.8,0.24648637]
[1646496090823,1.54957871,2646.9,2645.8,1.47906314]
[1646496091021,1.08199834,2647.0,2646.3,0.00329633]
[1646496091227,0.8869942,2646.6,2646.3,0.00329633]
[1646496091923,0.8869942,2646.6,2645.7,3.3136]
[1646496092124,0.8869942,2646.6,2646.3,0.0032963]
[1646496093931,0.03297205,2647.0,2646.3,0.0032963]
[1646496094131,1.54955873,2646.9,2645.7,2.3136]
[1646496094380,1.54955873,2646.9,2646.3,0.00305975]
[1646496094571,0.03297205,2647.0,2646.3,0.00305975]
[1646496094772,1.54956413,2646.9,2646.3,0.00305975]
[1646496095372,1.22021307,2646.6,2645.7,2.3136]
[1646496095572,1.22021307,2646.6,2646.4,0.00294854]
[1646496096174,0.03297205,2647.0,2646.4,0.00294854]
[1646496096380,1.54954802,2646.9,2646.4,0.00294854]
[1646496096576,0.03297205,2647.0,2645.8,0.25]
[1646496096777,1.54955573,2646.9,2645.8,0.25]
[1646496096977,1.54955573,2646.9,2646.4,0.00294861]
[1646496097781,0.03297205,2647.0,2645.8,0.25]
[1646496097981,1.18875241,2646.6,2645.8,0.25]
[1646496098227,1.18875241,2646.6,2646.4,0.0029523]
[1646496099128,1.18875241,2646.6,2645.7,2.3136]
[1646496099334,1.18875241,2646.6,2646.4,0.00286527]
[1646496100531,1.18875241,2646.6,2645.8,1.05554117]
[1646496100832,0.03297205,2647.0,2646.4,0.00286527]
[1646496101037,1.54956091,2646.9,2646.4,0.00286527]
[1646496101332,1.54956091,2646.9,2645.8,1.30554117]
[1646496101733,1.0395064,2646.7,2646.4,0.00286808]
[1646496102376,0.03297205,2647.0,2646.4,0.00286808]
[1646496102673,0.03297205,2647.0,2646.4,0.00286139]
[1646496102674,1.54955565,2646.9,2646.4,0.00286139]
[1646496103879,1.54955565,2646.9,2645.8,0.25]
[1646496104080,1.54955565,2646.9,2646.4,0.00286146]
[1646496104682,1.03209442,2646.7,2646.4,0.00286146]
[1646496104981,0.03297205,2647.0,2645.8,2.23865181]
[1646496105182,1.54956056,2646.9,2645.8,2.23865181]
[1646496105381,1.54956056,2646.9,2646.4,0.00309164]
[1646496106525,1.54956056,2646.9,2646.4,0.00309199]
[1646496106925,0.95980881,2646.6,2646.4,0.00309199]
[1646496107428,0.95980881,2646.6,2645.8,0.25]
[1646496107627,0.95980881,2646.6,2646.4,0.00309187]
[1646496108025,1.54962428,2646.5,2646.4,0.00309187]
[1646496108427,5.04962428,2646.5,2646.4,0.00309187]
[1646496108628,1.11596283,2645.8,2645.4,0.92646134]
[1646496108840,3.50394914,2646.3,2645.4,0.92646134]
[1646496109228,1.54978634,2646.2,2645.4,0.92646134]
[1646496109483,3.5,2646.1,2645.2,1.17646134]
[1646496109680,1.54978634,2646.0,2645.2,0.25]
[1646496109884,3.5,2645.9,2645.1,7.47]
[1646496110078,1.54978634,2645.8,2645.1,7.47]
[1646496110281,3.50394914,2646.3,2645.1,7.47]
[1646496110480,1.23264556,2645.7,2645.1,7.47]
[1646496111389,1.23264556,2645.7,2644.8,0.92646134]
[1646496111390,5.05006371,2645.6,2644.8,0.92646134]
[1646496111583,1.55006371,2645.5,2644.6,2.32836134]
[1646496111781,1.55006371,2645.5,2644.6,1.17646134]
[1646496111980,1.55006371,2645.5,2644.6,0.25]
[1646496112181,0.99710538,2645.3,2644.6,0.25]
[1646496112381,0.99710538,2645.3,2644.5,7.47]
[1646496112583,0.99710538,2645.3,2644.5,8.47]
[1646496112983,1.55029427,2645.2,2644.5,8.47]
[1646496113228,5.05029427,2645.2,2644.5,8.47]
[1646496113430,1.55029427,2645.1,2644.5,8.47]
[1646496113630,1.55029427,2645.1,2644.7,0.00329465]
[1646496113831,1.55029427,2645.2,2644.7,0.00329465]
[1646496114036,5.05029427,2645.2,2644.7,0.00329465]
[1646496114231,1.55029427,2645.1,2644.7,0.00329465]
[1646496114431,3.5,2645.2,2644.7,0.00329465]
[1646496114633,4.49710538,2645.3,2644.5,8.47]
[1646496114830,1.55038428,2645.2,2644.5,8.47]
[1646496115130,1.06951952,2644.9,2644.8,0.0032946]
[1646496115531,3.5,2645.3,2644.8,0.0032946]
[1646496115732,1.55039637,2645.2,2644.5,8.47]
[1646496115931,3.5,2645.1,2644.6,0.189]
[1646496116132,3.5,2645.3,2644.7,0.00329465]
[1646496116332,1.55037988,2645.2,2644.8,0.189]
[1646496116536,1.55037988,2645.2,2644.7,0.00329465]
[1646496116730,1.55037988,2645.2,2644.7,1.11698316]
[1646496116979,5.05037988,2645.5,2644.7,1.11368851]
[1646496117181,1.55036175,2645.4,2644.7,1.11368851]
[1646496117382,1.55036175,2645.4,2644.8,0.0032946]
[1646496117680,1.55036175,2645.3,2644.8,0.0032946]
[1646496117880,0.1877,2645.6,2644.8,0.0032946]
[1646496118080,1.55025071,2645.5,2644.8,0.0032946]
[1646496118282,0.1877,2645.6,2644.7,1.11368851]
[1646496118483,1.550242,2645.5,2645.1,0.90881341]
[1646496118887,4.6341,2645.9,2645.1,0.90881341]
[1646496119091,0.5502,2646.0,2645.1,0.90881341]
[1646496119584,1.43822727,2646.0,2645.1,0.90881341]
[1646496119787,1.43822727,2646.0,2645.4,0.00329435]
[1646496119985,1.55009646,2645.9,2645.4,0.00329435]
[1646496120386,5.05009646,2645.9,2645.4,0.00329435]
[1646496120630,1.43822727,2646.0,2645.4,0.00329435]
[1646496120831,1.55012731,2645.9,2645.4,0.00329435]
[1646496121031,1.55012731,2645.9,2645.5,0.00323299]
[1646496121232,5.05012731,2645.9,2645.5,0.00323299]
[1646496121431,1.55012731,2645.8,2645.5,0.00323299]
[1646496121636,1.43822727,2646.0,2645.5,0.00323299]
[1646496121637,0.5502,2646.0,2645.5,0.00323299]
[1646496122033,0.5502,2646.0,2645.4,0.19780595]
[1646496122331,0.5502,2646.0,2645.5,0.00301987]
[1646496123134,0.5502,2646.0,2645.5,0.89221612]
[1646496123537,0.5502,2646.0,2645.6,0.00301983]
[1646496124387,0.5502,2646.0,2645.4,0.19780595]
[1646496124388,0.5002,2646.0,2645.4,0.19780595]
[1646496124581,0.5002,2646.0,2645.7,0.00297972]
[1646496124782,0.00394914,2646.3,2645.7,1.01593033]
[1646496125183,1.55385911,2646.3,2645.7,1.01593033]
[1646496125385,0.00394914,2646.3,2645.7,1.01593033]
[1646496125583,0.00394914,2646.3,2645.7,1.01295061]
[1646496125783,0.00394914,2646.3,2645.9,0.00309082]
[1646496125983,3.50394914,2646.3,2645.9,0.00309082]
[1646496126182,1.54990043,2646.2,2645.9,0.00309082]
[1646496126690,0.00394914,2646.3,2645.9,0.00309082]
[1646496126883,2.56153614,2646.3,2645.4,1.28984751]
[1646496127085,1.54998365,2646.2,2645.9,0.0030908]
[1646496127283,5.04998365,2646.2,2645.9,0.0030908]
[1646496127485,1.55000442,2646.1,2645.9,0.0030908]
[1646496127684,1.01155249,2646.3,2645.9,0.0030908]
[1646496127883,1.01155249,2646.3,2645.4,0.75642272]
[1646496127884,1.54998971,2646.2,2645.4,0.75642272]
[1646496128123,1.54998971,2646.1,2645.4,0.75642272]
[1646496128326,0.00394914,2646.3,2645.9,0.00295441]
[1646496128530,0.00384709,2645.8,2645.4,0.75642272]
[1646496128728,0.00384709,2645.8,2645.4,0.19780595]
[1646496129131,0.00384709,2645.8,2645.7,0.88196426]
[1646496129728,0.00384709,2645.8,2645.7,1.26016426]
[1646496134204,4.709e-05,2645.8,2645.7,1.26016426]
[1646496134412,0.00394914,2646.3,2645.9,0.0008]
[1646496134605,0.00828376,2647.1,2646.4,1.32276]
[1646496134804,0.00207072,2647.3,2646.8,14.1882]
[1646496135001,0.00207072,2647.3,2646.7,0.3782]
[1646496135202,0.00207072,2647.3,2646.8,1.21895491]
[1646496135402,1.55063779,2647.6,2646.8,1.21895491]
[1646496135624,1.54926243,2647.6,2646.8,1.21895491]
[1646496136624,0.00196769,2647.3,2646.8,1.21895491]
[1646496136826,0.00196769,2647.3,2646.8,4.71895491]
[1646496137224,0.00196769,2647.3,2646.8,5.71895491]
[1646496137624,0.00137536,2647.6,2646.8,5.71895491]
[1646496137826,0.00319398,2647.2,2646.8,5.71895491]
[1646496138829,1.54929524,2647.7,2646.8,6.09715491]
[1646496139032,0.00319394,2647.2,2646.8,6.09715491]
[1646496139481,0.00319394,2647.2,2646.8,7.09715491]
[1646496139883,0.00245438,2648.2,2646.9,1.0]
[1646496140081,0.00245438,2648.2,2647.4,1.09199809]
[1646496140282,0.01219785,2647.8,2647.4,1.09199809]
[1646496140483,0.01219785,2647.8,2647.0,2.595]
[1646496140681,0.01219785,2647.8,2647.0,1.2168]
[1646496141283,0.1875,2648.1,2647.0,1.2168]
[1646496141284,0.00137536,2648.0,2647.0,1.2168]
[1646496141481,0.00137536,2648.0,2647.1,1.12543724]
[1646496141482,0.00305005,2647.5,2647.1,1.12543724]
[1646496142081,0.00305005,2647.5,2647.1,4.62543724]
[1646496142289,0.00305005,2647.5,2647.1,6.00363724]
[1646496142482,0.1887,2648.3,2647.1,6.00363724]
[1646496142483,0.00382974,2648.2,2647.1,6.00363724]
[1646496142885,0.1887,2648.5,2647.2,3.2114239]
[1646496142886,0.0030501,2647.4,2647.2,3.2114239]
[1646496143134,0.0030501,2647.4,2647.3,3.8782]
[1646496143337,0.0030501,2647.4,2647.3,5.8782]
[1646496143738,0.00182852,2647.5,2647.3,2.3782]
[1646496144237,0.00182852,2647.5,2647.3,1.3782]
[1646496144440,0.00182852,2647.5,2647.1,2.12543724]
[1646496144740,1.06344576,2648.0,2647.1,1.12543724]
[1646496144942,0.00136863,2647.9,2647.1,1.12543724]
[1646496145138,0.00183026,2647.4,2647.0,3.2168]
[1646496145339,0.00183026,2647.4,2647.0,2.2168]
[1646496145540,0.00183026,2647.4,2647.0,3.2168]
[1646496145743,0.00183026,2647.4,2647.0,2.2168]
[1646496145938,0.00183026,2647.4,2647.0,3.2168]
[1646496146138,0.00136863,2647.9,2647.0,3.19879643]
[1646496146538,0.00310786,2647.3,2647.0,3.19879643]
[1646496147278,9.15180474,2647.8,2647.0,1.98199643]
[1646496147481,9.15317337,2647.8,2647.0,1.98199643]
[1646496147677,0.00310789,2647.3,2647.0,0.98199643]
[1646496147876,0.00310789,2647.3,2647.1,3.5]
[1646496148075,0.00310789,2647.3,2647.0,1.36019643]
[1646496148280,0.00310789,2647.3,2647.0,0.98199643]
[1646496148683,0.00136863,2647.6,2647.0,0.98199643]
[1646496148887,0.00310789,2647.3,2647.0,0.98199643]
[1646496149181,0.00310789,2647.3,2646.9,1.0]
[1646496149583,4.86898126,2647.6,2646.7,2.28360862]
[1646496149882,4.34718957,2647.7,2646.7,2.2805]
[1646496150085,0.00310791,2647.2,2646.7,2.28360859]
[1646496150282,0.00310791,2647.2,2646.7,0.00310859]
[1646496150826,0.00310791,2647.2,2646.7,0.94778859]
[1646496151030,4.34718957,2647.7,2646.8,3.5]
[1646496151229,4.34718957,2647.7,2646.8,4.5]
[1646496151831,4.34718957,2647.7,2647.1,1.0706695]
[1646496152636,0.90508087,2648.0,2646.8,4.5]
[1646496152832,0.90508087,2648.0,2646.9,0.1887]
[1646496153636,1.01023365,2647.6,2646.9,0.1887]
[1646496153839,1.01023365,2647.6,2646.8,4.6887]
[1646496154038,1.01158913,2647.6,2646.8,4.5]
[1646496154238,1.01158913,2647.6,2646.8,3.5]
[1646496154885,0.00329652,2647.4,2646.8,3.5]
[1646496155484,0.00329652,2647.4,2646.7,0.1887]
[1646496155681,1.01158913,2647.6,2646.7,0.1887]
[1646496156083,0.00329645,2647.4,2646.7,0.1887]
[1646496157284,1.01158913,2647.6,2646.7,0.1887]
[1646496157483,0.00329641,2647.4,2646.7,0.1887]
[1646496158130,1.01158913,2647.6,2646.7,0.1887]
[1646496158338,3.5,2647.5,2646.7,0.1887]
[1646496158537,3.5,2647.4,2646.9,0.75]
[1646496158735,0.00318753,2647.4,2646.9,0.75]
[1646496158936,1.19924718,2647.7,2646.8,1.11035673]
[1646496159137,1.19924718,2647.7,2646.7,3.6887]
[1646496159336,3.7143,2648.1,2646.7,4.6887]
[1646496159536,1.54921698,2648.0,2646.7,4.6887]
[1646496160336,2.44539263,2648.0,2647.0,1.22434575]
[1646496160641,0.89617565,2648.0,2647.0,1.22434575]
[1646496161035,0.89617565,2648.0,2647.1,3.6887]
[1646496161236,0.89617565,2648.0,2647.1,4.6887]
[1646496161639,1.54916061,2647.9,2647.1,4.6887]
[1646496161886,1.6068,2648.2,2647.4,0.00125007]
[1646496162080,1.54912675,2648.1,2647.4,0.00125007]
[1646496162682,1.54912675,2648.1,2647.5,1.20414922]
[1646496162882,0.00135011,2648.2,2647.6,3.5]
[1646496163081,0.00245438,2648.4,2647.6,3.5]
[1646496163082,0.00380449,2648.4,2647.6,3.5]
[1646496163289,0.00329846,2648.1,2647.6,4.5]
[1646496163486,0.00329846,2648.1,2647.6,3.5]
[1646496163785,0.00329846,2648.1,2647.6,4.5]
[1646496163984,0.00329846,2648.1,2647.6,3.5]
[1646496164185,1.54883148,2648.6,2647.6,4.5]
[1646496164383,4.4165,2648.8,2647.6,4.5]
[1646496164384,0.00329853,2648.1,2647.6,3.5]
[1646496164584,0.00329853,2648.1,2647.6,1.0]
[1646496164884,0.00329853,2648.1,2647.7,3.5]
[1646496165085,0.00329853,2648.1,2647.5,1.15744848]
[1646496165384,0.00135011,2648.2,2647.4,1.76472537]
[1646496165628,1.54883148,2648.2,2647.5,0.0032993]
[1646496165835,0.00135011,2648.3,2647.5,0.0032993]
[1646496166630,0.00135011,2648.3,2647.4,0.57602537]
[1646496166829,0.18885011,2648.5,2647.4,0.57602537]
[1646496167530,1.11347445,2648.3,2647.4,0.57602537]
[1646496167730,1.11482456,2648.3,2647.4,0.57602537]
[1646496168131,0.0020488,2648.2,2647.4,0.57602537]
[1646496168935,1.11482456,2648.3,2647.4,0.57602537]
[1646496169388,0.00204868,2648.2,2647.4,0.57602537]
[1646496169778,1.14679412,2647.9,2647.4,0.57602537]
[1646496170378,1.14679412,2647.9,2647.5,0.00329914]
[1646496170985,0.00329825,2648.2,2647.5,0.00329914]
[1646496171382,0.00135011,2648.3,2647.4,0.57602537]
[1646496171681,0.00329841,2648.2,2647.7,0.00329908]
[1646496172080,0.00329841,2648.2,2647.7,1.03751542]
[1646496172481,0.00135011,2648.4,2647.5,4.5]
[1646496173129,0.00329849,2648.2,2647.7,0.00329915]
[1646496173540,0.00329849,2648.2,2647.7,1.05596746]
[1646496173734,0.00135011,2648.4,2647.7,1.05266831]
[1646496174136,0.00329849,2648.2,2647.7,0.00329915]
[1646496174939,0.00329849,2648.2,2647.5,5.6774]
[1646496175137,0.00328659,2648.2,2647.7,0.00328725]
[1646496175341,0.00328659,2648.2,2647.7,3.50328725]
[1646496175737,0.00328659,2648.2,2647.7,1.00328725]
[1646496176142,0.00135011,2648.5,2647.5,5.8661]
[1646496176143,0.6946018,2648.5,2647.5,5.8661]
[1646496176338,0.69325169,2648.4,2647.5,2.3661]
[1646496176539,0.00318813,2648.2,2647.7,0.00318878]
[1646496177380,0.00764336,2647.6,2647.5,1.1774]
[1646496177784,0.00764336,2647.6,2647.4,1.57602537]
[1646496177982,0.00764336,2647.6,2647.4,0.57602537]
[1646496178794,0.00764336,2647.6,2647.4,0.57922612]
[1646496179388,0.00764336,2647.6,2647.4,0.00320075]